[Event "AICF Women GM 2018"]
[Site "Mumbai"]
[Date "2018.06.17"]
[Round "9"]
[White "Srija, Seshadri"]
[Black "Zozulia, Anna"]
[Result "1-0"]
[ECO "B06"]
[WhiteElo "2207"]
[BlackElo "2314"]
[Annotator "NA"]
[PlyCount "59"]
[EventDate "2018.??.??"]
[EventType "tourn"]
[EventCountry "IND"]
[SourceTitle "playchess.com"]
[Source "ChessBase"]
[SourceQuality "1"]
[TimeControl "40/5400+30:1800+30"]

{[%evp 8,53,57,46,45,32767,32767,32767,42,17,7,32767,37,-16,0,-9,8,14,25,-86,54,58,32767,32767,32767,32767,32767,32767,32767,32767,32767,32767,32767,32767,32767,383,501,32767,661,32767,552,786,32767,32767,32767,32767,32767,442]} 1. e4 {[%emt 0:00:07]} g6 {[%emt 0:00:38]} 2. d4 {[%emt 0:00:09]} Bg7 {[%emt 0:00:03]} 3. Nc3 {[%emt 0:00:07]} d6 {[%emt 0:00:23]} 4. f4 {[%emt 0:00:11]} a6 {[%emt 0:00:11] LiveBook: 1138 Games} 5. Nf3 {[%emt 0:01:02]} e6 {[%emt 0:01:54] B06: Modern Defence} (5... b5 6. Bd3 Nd7 7. e5 c5 8. Be4 Rb8 9. O-O cxd4 10. Nxd4 dxe5 11. Nc6 Qb6+ 12. Kh1 Ngf6 13. Nxb8 Qxb8 14. fxe5 Nxe4 15. Nxe4 Qxe5 {½-½ (37) Cornette,M (2611)-Nakamura,H (2781) chess.com INT 2018}) 6. a4 {[%emt 0:01:55]} Ne7 {[%emt 0:02:32]} 7. Be2 {[%emt 0:01:30]} Nd7 {[%emt 0:00:53]} 8. O-O {[%emt 0:00:32]} b6 {[%emt 0:01:51]} 9. Be3 {[%emt 0:01:24]} Bb7 {[%emt 0:00:41]} 10. g4 $146 {[%emt 0:09:46]} ({Predecessor:} 10. Nd2 O-O 11. Bf3 d5 12. e5 {0-1 (83) Uzumcu,A (2223)-Ozen,B (2315) Kocaeli 2017}) 10... h5 {[%emt 0:08:58]} 11. g5 {[%emt 0:01:17]} c6 {[%emt 0:13:35]} 12. Nh4 {[%emt 0:04:43]} c5 {[%emt 0:04:12]} 13. f5 {[%emt 0:11:55] [#]} (13. d5 $14 {keeps the upper hand.}) 13... exf5 {[%emt 0:04:45]} (13... Nxf5 $1 $17 14. Nxf5 gxf5) 14. exf5 {[%emt 0:02:23]} Bxd4 {[%emt 0:15:14]} 15. Bxd4 {[%emt 0:02:31]} cxd4 {[%emt 0:00:03]} 16. Qxd4 {[%emt 0:02:31]} Ne5 {[%emt 0:00:59]} 17. Ne4 {[%emt 0:04:08]} Bxe4 {[%emt 0:04:53]} 18. Qxe4 {[%emt 0:00:02]} Qc8 {[%emt 0:06:23]} 19. fxg6 {[%emt 0:09:02]} fxg6 {[%emt 0:00:04]} 20. Rf6 {[%emt 0:02:06]} Ra7 {[%emt 0:13:23]} 21. Rd1 {[%emt 0:05:56]} Qc5+ {[%emt 0:04:38]} 22. Kh1 {[%emt 0:01:22]} Nf7 {[%emt 0:00:42]} 23. Re6 {[%emt 0:11:05]} Kd8 {[%emt 0:09:20]} 24. Nxg6 {[%emt 0:01:21]} Nxg6 {[%emt 0:01:47]} 25. Qxg6 {[%emt 0:09:33]} Qc6+ {[%emt 0:00:20]} 26. Kg1 {[%emt 0:00:05]} Qc5+ {[%emt 0:00:07]} 27. Kf1 $18 {[%emt 0:00:12]} Kc8 {[%emt 0:03:22]} 28. Rf6 {[%emt 0:05:24]} Nxg5 {[%emt 0:00:50]} 29. Rdxd6 {[%emt 0:02:02]} Rc7 {[%emt 0:01:43]} 30. Rc6 {[%emt 0:00:56]} 1-0

[Event "AICF Women GM 2018"]
[Site "Mumbai"]
[Date "2018.06.18"]
[Round "10"]
[White "Tokhirjonova, Gulrukhbegim"]
[Black "Aakanksha Hagawane"]
[Result "1/2-1/2"]
[ECO "A50"]
[WhiteElo "2379"]
[BlackElo "2297"]
[Annotator "NA RC"]
[PlyCount "80"]
[EventDate "2018.??.??"]
[EventType "tourn"]
[EventCountry "IND"]
[SourceTitle "playchess.com"]
[Source "ChessBase"]
[SourceQuality "1"]
[TimeControl "40/5400+30:1800+30"]

{[%evp 13,77,33,32767,32767,32767,25,32767,32767,33,33,78,16,21,20,15,8,0,0,0,0,0,-16,0,-8,32767,32767,32767,32767,32767,-4,0,-2,0,32767,-6,-10,-8,-20,0,0,0,0,0,-7,-8,32767,32767,32767,32767,32767,32767,32767,32767,32767,32767,32767,32767,32767,32767,32767,0,32767,32767,32767,32767,0]} 1. d4 {[%emt 0:00:00]} Nf6 {[%emt 0:00:13]} 2. c4 {[%emt 0:00:00]} Nc6 {[%emt 0:00:14]} 3. Nf3 {[%emt 0:01:13]} e6 {[%emt 0:00:13]} 4. a3 {[%emt 0:01:14]} d6 {[%emt 0:00:35]} 5. Nc3 {[%emt 0:00:27]} g6 {[%emt 0:00:41]} 6. e4 {[%emt 0:01:11]} Bg7 {[%emt 0:00:21]} 7. Be2 {[%emt 0:01:38]} O-O {[%emt 0:00:59]} 8. O-O {[%emt 0:00:34]} Re8 {[%emt 0:01:21] E10: Blumenfeld Gambit} 9. h3 {[%emt 0:02:59]} (9. d5 exd5 10. cxd5 Ne7 11. Bf4 c6 12. Re1 cxd5 13. exd5 Nf5 14. Qb3 Nd7 15. Bb5 Rxe1+ 16. Rxe1 {1-0 (36) Krasenkow,M (2630)-Jones,G (2660) Porticcio 2017}) 9... e5 {[%emt 0:01:26]} 10. dxe5 {[%emt 0:01:24]} dxe5 {[%emt 0:01:54]} 11. Be3 {[%emt 0:02:19] LiveBook: 7 Games} Qe7 {[%emt 0:08:41]} (11... Nh5 $11) 12. Rc1 $146 {[%emt 0:17:33]} ({Predecessor:} 12. Re1 $16 Be6 13. Nd5 Bxd5 14. exd5 Nb8 15. c5 e4 16. Nh2 {1-0 (24) Cvitan,O (2491)-Tomazini,Z (2414) Tallinn 2016}) 12... Nd4 $1 {[%emt 0:09:57]} 13. Nxd4 {[%emt 0:08:54]} exd4 {[%emt 0:00:09]} 14. Bxd4 {[%emt 0:00:03]} Nxe4 {[%emt 0:03:26]} 15. Nd5 {[%emt 0:00:46]} Qd8 {[%emt 0:03:16]} 16. Bf3 {[%emt 0:17:49]} c6 {[%emt 0:07:46]} 17. Bxg7 {[%emt 0:00:39]} Kxg7 {[%emt 0:02:14]} 18. Qd4+ {[%emt 0:01:49]} Nf6 {[%emt 0:00:08]} 19. Qxf6+ {[%emt 0:01:00]} Qxf6 {[%emt 0:00:07]} 20. Nxf6 {[%emt 0:00:07]} Kxf6 {[%emt 0:00:02]} 21. b4 {[%emt 0:00:09]} a6 {[%emt 0:04:34]} 22. a4 {[%emt 0:02:18]} Bf5 {[%emt 0:03:14]} 23. Rfd1 {[%emt 0:06:37]} Rad8 {[%emt 0:04:27]} 24. Rxd8 {[%emt 0:01:48]} Rxd8 {[%emt 0:00:01]} 25. b5 {[%emt 0:00:14]} axb5 {[%emt 0:05:12]} 26. cxb5 {[%emt 0:01:19]} cxb5 {[%emt 0:00:26]} 27. axb5 {[%emt 0:00:02]} Rd7 {[%emt 0:00:21]} 28. Ra1 {[%emt 0:10:35]} Bd3 {[%emt 0:04:02]} 29. Ra7 {[%emt 0:06:08]} Bxb5 {[%emt 0:00:40]} 30. Rxb7 {[%emt 0:00:04]} Rxb7 {[%emt 0:00:09]} 31. Bxb7 {[%emt 0:00:02]} h5 {[%emt 0:01:11]} 32. h4 {[%emt 0:00:12]} Bc4 {[%emt 0:00:10]} 33. Kh2 {[%emt 0:00:06]} Be6 {[%emt 0:01:21]} 34. Kg3 {[%emt 0:00:04]} Ke5 {[%emt 0:00:35]} 35. Bc6 {[%emt 0:00:15]} Kd6 {[%emt 0:00:28]} 36. Be8 {[%emt 0:00:24]} Ke5 {[%emt 0:00:10]} 37. Ba4 {[%emt 0:01:30]} Bd5 {[%emt 0:00:42]} 38. Be8 {[%emt 0:00:09]} Be6 {[%emt 0:00:07]} 39. Bc6 $11 {[%emt 0:00:17]} Kd6 {[%emt 0:00:29]} 40. Be8 {[%emt 0:00:08]} Ke5 {[%emt 0:30:06]} 1/2-1/2

[Event "AICF Women GM 2018"]
[Site "Mumbai"]
[Date "2018.06.18"]
[Round "10"]
[White "Vo, Thi Kim Phung"]
[Black "Vantika Agrawal"]
[Result "1-0"]
[ECO "E92"]
[WhiteElo "2376"]
[BlackElo "2279"]
[Annotator "NA"]
[PlyCount "145"]
[EventDate "2018.??.??"]
[EventType "tourn"]
[EventCountry "IND"]
[SourceTitle "playchess.com"]
[Source "ChessBase"]
[SourceQuality "1"]
[TimeControl "40/5400+30:1800+30"]

1. d4 {[%emt 0:00:00]} Nf6 {[%emt 0:00:08]} 2. c4 {[%emt 0:00:00]} g6 {[%emt 0:00:10]} 3. Nc3 {[%emt 0:00:00]} Bg7 {[%emt 0:00:04]} 4. e4 {[%emt 0:00:00]} d6 {[%emt 0:00:12]} 5. Nf3 {[%emt 0:00:03]} O-O {[%emt 0:00:15]} 6. Be2 {[%emt 0:00:03]} e5 {[%emt 0:00:05]} 7. Be3 {[%emt 0:00:10]} Ng4 {[%emt 0:00:45]} 8. Bg5 {[%emt 0:00:13]} f6 {[%emt 0:00:10]} 9. Bh4 {[%emt 0:00:13]} Nc6 {[%emt 0:00:46]} 10. d5 {[%emt 0:00:53]} Ne7 {[%emt 0:00:07]} 11. h3 {[%emt 0:07:19] E92: King's Indian: Classical: 6 Be2 e5: 7 dxe5, 7 Be3 and Petrosian System without 7...Nbd7} (11. O-O g5 12. Bg3 h5 13. Nd2 f5 14. exf5 Nxf5 15. Nde4 Ngh6 16. Bxh5 g4 17. Bg6 Ne7 18. Bh5 Nef5 19. Bg6 Ne7 20. Bh5 Nef5 {½-½ (20) Ibrahimov,R (2518)-Amin,B (2689) Riadh 2017}) 11... Nh6 {[%emt 0:00:29]} 12. Qd2 {[%emt 0:01:12]} Nf7 {[%emt 0:16:33]} 13. O-O {[%emt 0:03:31]} Bh6 $146 {[%emt 0:17:35]} ({Predecessor:} 13... g5 14. Bg3 Ng6 15. Rfe1 Nf4 16. Bd1 Nh6 17. Rb1 Kh8 18. Bxf4 gxf4 {½-½ (30) Rimsans,A (2067)-Gierden,H (2287) ICCF email 2016}) 14. Qc2 {[%emt 0:04:37]} g5 {[%emt 0:00:31]} 15. Bg3 {[%emt 0:00:16]} f5 {[%emt 0:00:56]} 16. exf5 {[%emt 0:06:28]} Nxf5 {[%emt 0:00:45]} 17. Bd3 {[%emt 0:01:16]} Nh8 {[%emt 0:08:21]} 18. Bh2 {[%emt 0:06:49]} Ng6 {[%emt 0:01:59]} 19. Be4 {[%emt 0:10:20]} g4 {[%emt 0:38:15]} (19... Nf4 $11) 20. hxg4 {[%emt 0:00:34]} Nfh4 {[%emt 0:04:46]} (20... Nfe7 $16) 21. Nxh4 {[%emt 0:01:44]} Nxh4 {[%emt 0:00:46]} 22. Qe2 {[%emt 0:05:10]} Qg5 {[%emt 0:02:33]} 23. f3 {[%emt 0:01:10]} Bg7 {[%emt 0:02:24]} 24. Qd3 {[%emt 0:05:28]} Ng6 {[%emt 0:01:27]} 25. Bxg6 {[%emt 0:00:43]} hxg6 {[%emt 0:00:56]} 26. Ne4 {[%emt 0:00:13]} Qe7 {[%emt 0:01:41]} 27. Bg3 {[%emt 0:03:04]} Bh6 {[%emt 0:00:27]} 28. Rae1 {[%emt 0:00:24]} Bd7 {[%emt 0:00:36]} 29. Nf2 {[%emt 0:02:16]} Kg7 {[%emt 0:00:34]} 30. Nh3 {[%emt 0:01:20]} Rae8 {[%emt 0:00:36]} 31. Re4 {[%emt 0:01:01]} Qf6 {[%emt 0:00:32]} 32. Qc3 {[%emt 0:04:17]} c6 {[%emt 0:00:31]} (32... Kg8 $16 33. Nf2 c6) 33. Qa3 {[%emt 0:02:13]} cxd5 {[%emt 0:00:24]} 34. cxd5 {[%emt 0:00:08]} Bb5 {[%emt 0:00:34]} 35. Rd1 {[%emt 0:00:33]} a6 {[%emt 0:00:32]} 36. Qb4 {[%emt 0:01:29]} Rf7 {[%emt 0:00:30]} 37. Be1 {[%emt 0:03:27]} Rc8 {[%emt 0:00:29]} 38. Bc3 {[%emt 0:01:04]} Kg8 {[%emt 0:00:31]} 39. f4 {[%emt 0:02:33]} Bf8 {[%emt 0:00:28]} 40. Qb3 {[%emt 0:08:47]} Re8 {[%emt 0:30:33]} 41. Ng5 {[%emt 0:33:09]} Bh6 {[%emt 0:00:00]} 42. Nxf7 {[%emt 0:00:00]} Bxf4 {[%emt 0:00:00]} 43. Bd2 {[%emt 0:00:00]} Bxd2 {[%emt 0:00:18]} 44. Rxd2 {[%emt 0:00:00]} Qf1+ {[%emt 0:01:30]} 45. Kh2 {[%emt 0:00:00]} Qxf7 $18 {[%emt 0:00:26]} 46. a4 {[%emt 0:00:00]} Bd7 {[%emt 0:00:37]} 47. Qxb7 {[%emt 0:00:00]} g5 {[%emt 0:00:38]} 48. Kg1 {[%emt 0:00:00]} Rf8 {[%emt 0:00:21]} 49. Qxa6 {[%emt 0:00:00]} Kg7 {[%emt 0:00:38]} 50. Qe2 {[%emt 0:00:00]} Qg6 {[%emt 0:00:32]} 51. Rc2 {[%emt 0:00:00]} Be8 {[%emt 0:00:12]} 52. Rc3 {[%emt 0:00:00]} Bf7 {[%emt 0:00:27]} 53. Qd3 {[%emt 0:00:00]} Rh8 {[%emt 0:00:53]} 54. Re3 {[%emt 0:00:00]} Qf6 {[%emt 0:00:26]} 55. Rf3 {[%emt 0:00:00]} Qe7 {[%emt 0:00:31]} 56. Rh3 {[%emt 0:00:00]} Bg6 {[%emt 0:00:30]} 57. Qe3 {[%emt 0:00:00]} Rb8 {[%emt 0:00:25]} 58. b3 {[%emt 0:00:00]} Rb4 {[%emt 0:00:33]} 59. Rc4 {[%emt 0:00:00]} Rb8 {[%emt 0:00:34]} 60. b4 {[%emt 0:00:12]} Bf7 {[%emt 0:00:30]} 61. Qd3 {[%emt 0:01:54]} Bg6 {[%emt 0:00:29]} 62. Qc3 {[%emt 0:00:12]} Qa7+ {[%emt 0:00:26]} 63. Kh2 {[%emt 0:00:16]} Rb7 {[%emt 0:00:32]} 64. a5 {[%emt 0:00:33]} Rf7 {[%emt 0:00:27]} 65. Qe3 {[%emt 0:00:21]} Qe7 {[%emt 0:00:35]} 66. a6 {[%emt 0:00:31]} Rf4 {[%emt 0:00:28]} 67. a7 {[%emt 0:01:33]} Qf8 {[%emt 0:00:34]} 68. Rxf4 {[%emt 0:00:50]} gxf4 {[%emt 0:00:22]} 69. Qb6 {[%emt 0:00:19]} f3 {[%emt 0:00:26]} 70. Rxf3 {[%emt 0:00:19]} Qh8+ {[%emt 0:00:08]} 71. Kg1 {[%emt 0:00:19]} Be4 {[%emt 0:00:59]} 72. Qb7+ {[%emt 0:00:39]} Kg6 {[%emt 0:00:24]} 73. a8=Q {[%emt 0:00:22]} 1-0

[Event "AICF Women GM 2018"]
[Site "Mumbai"]
[Date "2018.06.19"]
[Round "11"]
[White "Vantika Agrawal"]
[Black "Zozulia, Anna"]
[Result "1-0"]
[ECO "E62"]
[WhiteElo "2279"]
[BlackElo "2314"]
[Annotator "ChessBase"]
[PlyCount "139"]
[EventDate "2018.??.??"]
[EventType "tourn"]
[EventCountry "IND"]
[SourceTitle "playchess.com"]
[Source "ChessBase"]
[SourceQuality "1"]
[TimeControl "40/5400+30:1800+30"]

1. Nf3 {[%emt 0:00:00]} Nf6 {[%emt 0:00:39]} 2. g3 {[%emt 0:00:00]} g6 {[%emt 0:00:20]} 3. Bg2 {[%emt 0:00:00]} Bg7 {[%emt 0:00:13]} 4. O-O {[%emt 0:00:00]} O-O {[%emt 0:00:35]} 5. d4 {[%emt 0:00:09]} d6 {[%emt 0:00:16]} 6. c4 {[%emt 0:00:07]} c6 {[%emt 0:00:18]} 7. Nc3 {[%emt 0:00:10]} Qa5 {[%emt 0:00:55]} 8. e4 {[%emt 0:04:13]} e5 {[%emt 0:01:35]} 9. h3 {[%emt 0:03:02]} Nbd7 {[%emt 0:02:08]} 10. Re1 {[%emt 0:00:34]} exd4 {[%emt 0:00:35]} 11. Nxd4 {[%emt 0:00:11]} Re8 {[%emt 0:00:02]} 12. Be3 {[%emt 0:01:54]} a6 {[%emt 0:03:27]} 13. Nb3 {[%emt 0:35:08]} Qc7 {[%emt 0:04:44]} 14. c5 {[%emt 0:03:07]} dxc5 {[%emt 0:14:01]} 15. Nxc5 {[%emt 0:02:06]} Ne5 {[%emt 0:14:07]} 16. Qe2 {[%emt 0:08:57]} b6 {[%emt 0:02:02]} 17. Nd3 {[%emt 0:13:24]} Nxd3 {[%emt 0:03:02]} 18. Qxd3 {[%emt 0:00:51]} Bb7 {[%emt 0:08:30]} 19. b4 {[%emt 0:11:03]} Rad8 {[%emt 0:02:25]} 20. Qc2 {[%emt 0:02:02]} c5 {[%emt 0:06:31]} 21. bxc5 {[%emt 0:00:38]} Nd7 {[%emt 0:05:13]} 22. Rab1 {[%emt 0:03:12]} Nxc5 {[%emt 0:07:39]} 23. Nd5 {[%emt 0:01:39]} Bxd5 {[%emt 0:01:46]} 24. exd5 {[%emt 0:02:17]} Be5 {[%emt 0:00:11]} 25. h4 {[%emt 0:04:29]} Qd6 {[%emt 0:01:52]} 26. Qd2 {[%emt 0:03:12]} h5 {[%emt 0:03:33]} 27. Rec1 {[%emt 0:00:30]} Rc8 {[%emt 0:02:06]} 28. Rc2 {[%emt 0:00:20]} Rc7 {[%emt 0:01:32]} 29. Rbc1 {[%emt 0:00:14]} Rec8 {[%emt 0:02:24]} 30. Qb4 {[%emt 0:00:55]} Kg7 {[%emt 0:02:28]} 31. Rc4 {[%emt 0:00:31]} Kh7 {[%emt 0:04:24]} 32. Qb1 {[%emt 0:00:30]} Kg7 {[%emt 0:04:17]} 33. a4 {[%emt 0:00:18]} a5 {[%emt 0:00:21]} 34. Qb5 {[%emt 0:00:39]} Kh7 {[%emt 0:00:52]} 35. Rb1 {[%emt 0:00:22]} Rb8 {[%emt 0:00:19]} 36. Kh2 {[%emt 0:00:34]} Kg7 {[%emt 0:00:23]} 37. Bf3 {[%emt 0:00:28]} Kh7 {[%emt 0:00:29]} 38. Kg2 {[%emt 0:00:20]} Kg7 {[%emt 0:00:04]} 39. Rbc1 {[%emt 0:00:31]} Rbc8 {[%emt 0:00:23]} 40. Rb1 {[%emt 0:00:21]} Rb8 {[%emt 0:30:22]} 41. Bd2 {[%emt 0:11:58]} Ra7 {[%emt 0:00:00]} 42. Qc6 {[%emt 0:04:38]} Kh7 {[%emt 0:00:00]} 43. Bc3 {[%emt 0:05:23]} Qxc6 {[%emt 0:00:00]} 44. dxc6 {[%emt 0:00:19]} Bxc3 {[%emt 0:00:00]} 45. Rxc3 {[%emt 0:05:29]} Na6 {[%emt 0:00:00]} 46. Rd1 {[%emt 0:03:03]} Nc5 {[%emt 0:00:00]} 47. Rb1 {[%emt 0:00:25]} Na6 {[%emt 0:00:00]} 48. Be2 {[%emt 0:00:47]} Nb4 {[%emt 0:00:00]} 49. Rd1 {[%emt 0:00:19]} Kg7 {[%emt 0:00:00]} 50. Bb5 {[%emt 0:00:57]} Kf6 {[%emt 0:04:47]} 51. Rd7 {[%emt 0:00:18]} Raa8 {[%emt 0:03:23]} 52. Rf3+ {[%emt 0:00:31]} Ke5 {[%emt 0:00:03]} 53. Rfxf7 {[%emt 0:00:57]} Rc8 {[%emt 0:00:10]} 54. f4+ {[%emt 0:01:53]} Ke4 {[%emt 0:00:03]} 55. Be2 {[%emt 0:00:57]} Re8 {[%emt 0:01:04]} 56. Bf3+ {[%emt 0:00:16]} Ke3 {[%emt 0:00:04]} 57. Rfe7+ {[%emt 0:00:27]} Rxe7 {[%emt 0:00:05]} 58. Rxe7+ {[%emt 0:00:02]} Kd4 {[%emt 0:00:05]} 59. c7 {[%emt 0:00:10]} Rc8 {[%emt 0:00:45]} 60. Bb7 {[%emt 0:00:06]} Nd5 {[%emt 0:00:04]} 61. Bxc8 {[%emt 0:01:26]} Nxe7 {[%emt 0:00:05]} 62. Bd7 {[%emt 0:00:04]} Kc5 {[%emt 0:03:16]} 63. c8=Q+ {[%emt 0:00:14]} Nxc8 {[%emt 0:00:05]} 64. Bxc8 {[%emt 0:00:05]} b5 {[%emt 0:00:02]} 65. axb5 {[%emt 0:00:04]} a4 {[%emt 0:00:03]} 66. Be6 {[%emt 0:00:15]} Kxb5 {[%emt 0:00:15]} 67. Kf3 {[%emt 0:00:08]} Kc5 {[%emt 0:00:06]} 68. Ke4 {[%emt 0:00:25]} Kd6 {[%emt 0:00:04]} 69. Ba2 {[%emt 0:00:07]} Ke7 {[%emt 0:00:08]} 70. Ke5 {[%emt 0:00:04]} 1-0